bitfinex-derivatives/quotes_BTCF0:USTF0_20241120
["timestamp","ask_amount","ask_price","bid_price","bid_amount"]
[1732065881986,9.614e-05,91848.0,91846.0,0.054359]
[1732065882375,0.10591678,91851.0,91847.0,0.32664]
[1732065882674,0.10591678,91851.0,91850.0,0.054357]
[1732065883073,0.054358,91848.0,91843.0,0.3608]
[1732065883281,0.054358,91848.0,91846.0,0.054359]
[1732065883491,0.00012912,91847.0,91846.0,0.054359]
[1732065883984,0.00012912,91847.0,91846.0,0.380999]
[1732065884577,0.05448812,91847.0,91846.0,0.32664]
[1732065885479,0.05448812,91847.0,91846.0,0.35934]
[1732065885681,0.05448812,91847.0,91846.0,0.0327]
[1732065889186,0.05448812,91847.0,91845.0,0.36136]
[1732065889388,0.054361,91844.0,91843.0,0.05489047]
[1732065889588,0.054361,91844.0,91842.0,0.054362]
[1732065889791,0.00012912,91847.0,91846.0,0.05436]
[1732065891078,0.00012912,91847.0,91846.0,0.381]
[1732065895287,0.00012912,91847.0,91846.0,0.05436]
[1732065895788,0.00012912,91847.0,91846.0,0.381]
[1732065896101,0.00012912,91847.0,91846.0,0.05436]
[1732065896997,0.00012912,91847.0,91846.0,0.381]
[1732065897299,0.00012912,91847.0,91842.0,0.36144]
[1732065897300,0.054361,91844.0,91842.0,0.36144]
[1732065897487,0.054361,91844.0,91842.0,0.3608]
[1732065898896,0.054361,91844.0,91843.0,0.054361]
[1732065899796,0.00012912,91847.0,91846.0,0.05436]
[1732065900391,0.00012912,91847.0,91846.0,0.381]
[1732065902090,0.00012912,91847.0,91846.0,0.05436]
[1732065902790,0.00012912,91847.0,91846.0,0.381]
[1732065903193,0.00012912,91847.0,91846.0,0.05436]
[1732065904196,0.00012912,91847.0,91846.0,0.381]
[1732065905697,0.0051,91853.0,91852.0,0.054356]
[1732065905895,0.0051,91859.0,91858.0,0.054352]
[1732065906098,0.0051,91865.0,91864.0,0.054349]
[1732065906299,0.0051,91870.0,91869.0,0.054346]
[1732065906506,0.0051,91876.0,91875.0,0.054342]
[1732065906702,0.00163324,91878.0,91877.0,0.054341]
[1732065906906,0.00173285,91878.0,91877.0,0.054341]
[1732065907712,9.961e-05,91878.0,91877.0,0.513901]
[1732065908502,9.961e-05,91878.0,91877.0,0.56805611]
[1732065911314,9.961e-05,91878.0,91876.0,0.00012582]
[1732065911522,0.054341,91877.0,91876.0,0.00012582]
[1732065914505,9.961e-05,91878.0,91876.0,0.05446682]
[1732065915804,9.961e-05,91878.0,91877.0,0.45844]
[1732065916011,0.054341,91877.0,91876.0,0.00012582]
[1732065916203,0.086341,91877.0,91876.0,0.00012582]
[1732065919821,9.961e-05,91878.0,91877.0,0.913659]
[1732065920121,0.05444061,91878.0,91877.0,0.913659]
[1732065922909,0.52115739,91878.0,91877.0,0.855055]
[1732065923214,0.52115739,91878.0,91877.0,0.51319649]
[1732065923413,0.52115739,91878.0,91877.0,0.45466649]
[1732065923819,0.52115739,91878.0,91877.0,0.40476649]
[1732065925317,0.52115739,91878.0,91877.0,0.34137549]
[1732065925531,0.52115739,91878.0,91876.0,0.00012582]
[1732065925714,0.52115739,91878.0,91876.0,8.2e-07]
[1732065925715,0.0316,91877.0,91876.0,8.2e-07]
[1732065930310,0.35812,91877.0,91876.0,8.2e-07]
[1732065930514,0.054342,91876.0,91860.0,8.2e-07]
[1732065930723,0.88186778,91861.0,91860.0,8.2e-07]
[1732065930913,0.88186778,91861.0,91847.0,0.0005387]
[1732065930914,0.054358,91848.0,91847.0,0.0005387]
[1732065931117,0.61963478,91848.0,91847.0,0.0005387]
[1732065933220,0.52107478,91848.0,91847.0,0.0005387]
[1732065933422,0.61963478,91848.0,91847.0,0.0005387]
[1732065934219,0.67321843,91848.0,91847.0,0.0005387]
[1732065934726,0.054358,91848.0,91847.0,0.0005387]
[1732065935118,0.054358,91848.0,91811.0,0.3608]
[1732065935119,0.054374,91822.0,91811.0,0.3608]
[1732065935331,0.25885078,91822.0,91814.0,0.0319]
[1732065938022,0.16029078,91822.0,91814.0,0.0319]
[1732065938344,0.054374,91822.0,91814.0,0.0319]
[1732065938723,0.054374,91822.0,91814.0,0.086278]
[1732065939738,0.054374,91822.0,91814.0,0.0319]
[1732065951029,0.054374,91822.0,91811.0,0.3608]
[1732065951229,0.054386,91801.0,91800.0,0.1]
[1732065951432,0.25878278,91801.0,91800.0,0.1]
[1732065952234,0.25891001,91801.0,91800.0,0.1]
[1732065953335,0.25891001,91801.0,91800.0,0.00486036]
[1732065957234,0.054389,91797.0,91783.0,0.0312]
[1732065957541,0.054396,91784.0,91783.0,0.0312]
[1732065957744,0.25879278,91784.0,91783.0,0.0312]
[1732065958638,0.152876,91784.0,91783.0,0.0312]
[1732065958849,0.25879278,91784.0,91783.0,0.0312]
[1732065960455,0.152876,91784.0,91783.0,0.0312]
[1732065960644,0.152874,91788.0,91783.0,0.0312]
[1732065960942,0.0051,91790.0,91784.0,0.0303]
[1732065961245,0.054395,91787.0,91784.0,0.0303]
[1732065961446,0.0051,91790.0,91785.0,0.054396]
[1732065962247,0.0051,91790.0,91789.0,0.054393]
[1732065962469,0.0051,91790.0,91784.0,0.3911]
[1732065962470,0.0051,91796.0,91795.0,0.05439]
[1732065962744,0.054388,91799.0,91798.0,0.054388]
[1732065963139,0.054377,91818.0,91799.0,0.3268]
[1732065963344,0.054377,91817.0,91814.0,0.054378]
[1732065963543,0.054377,91817.0,91815.0,0.0333]
[1732065963749,0.00163482,91820.0,91818.0,0.054376]
[1732065963953,0.00163482,91820.0,91819.0,0.3608]
[1732065964245,9.796e-05,91828.0,91827.0,0.054371]
[1732065964437,9.796e-05,91828.0,91827.0,0.415171]
[1732065964940,9.796e-05,91828.0,91827.0,0.741851]
[1732065967340,9.796e-05,91828.0,91827.0,0.32668]
[1732065968252,9.796e-05,91828.0,91823.0,0.054373]
[1732065969060,9.796e-05,91828.0,91827.0,0.3608]
[1732065969440,9.796e-05,91828.0,91827.0,0.68748]
[1732065972160,0.054364,91838.0,91827.0,0.68748]
[1732065972348,0.00163377,91846.0,91837.0,0.3548]
[1732065972548,0.054361,91844.0,91841.0,0.054362]
[1732065972745,0.00163377,91846.0,91838.0,0.087564]
[1732065972746,0.054362,91842.0,91838.0,0.087564]
[1732065973458,0.00014123,91841.0,91839.0,0.054363]
[1732065973643,0.00014123,91841.0,91840.0,0.10591678]
[1732065974045,0.054357,91851.0,91841.0,0.054362]
[1732065974255,0.054357,91851.0,91850.0,0.10591678]
[1732065975042,0.05448019,91851.0,91850.0,0.10591678]
[1732065975445,0.054361,91844.0,91843.0,9.978e-05]
[1732065977058,0.05448019,91851.0,91843.0,9.978e-05]
[1732065977363,0.05448019,91851.0,91848.0,0.054358]
[1732065978155,0.054358,91850.0,91848.0,0.054358]
[1732065979061,0.00012319,91851.0,91848.0,0.087458]
[1732065979265,0.00012319,91851.0,91850.0,0.054357]
[1732065979766,0.00012319,91851.0,91850.0,0.085057]
[1732065980360,0.00012319,91851.0,91850.0,0.411657]
[1732065980559,0.00098,91868.0,91851.0,0.3266]
[1732065980765,0.0054,91878.0,91877.0,0.054341]
[1732065981059,0.3608,91897.0,91877.0,0.56503678]
[1732065981251,0.3608,91897.0,91895.0,0.05433]
[1732065981454,0.00163348,91905.0,91898.0,0.054329]
[1732065981649,0.00163348,91905.0,91899.0,0.10591678]
[1732065981854,0.10010633,91900.0,91899.0,0.10591678]
[1732065983164,0.0054,91917.0,91899.0,0.79315678]
[1732065983357,0.054316,91919.0,91916.0,0.10591678]
[1732065983865,0.0309,91932.0,91920.0,0.054315]
[1732065984067,0.054314,91923.0,91916.0,0.10591678]
[1732065984265,0.0001054,91922.0,91916.0,0.10591678]
[1732065984475,0.0544204,91922.0,91916.0,0.10591678]
[1732065985166,0.0544204,91922.0,91916.0,0.16023478]
[1732065985972,0.0001054,91922.0,91916.0,0.10591678]
[1732065986264,0.0001054,91922.0,91920.0,0.054315]
[1732065986564,0.0001054,91922.0,91921.0,0.09828]
[1732065986769,0.0001054,91922.0,91921.0,0.42464]
[1732065986969,0.054307,91936.0,91935.0,0.10591678]
[1732065987270,0.00163234,91942.0,91935.0,0.10591678]
[1732065987458,0.00163234,91942.0,91928.0,0.3608]
[1732065987661,0.054307,91936.0,91932.0,0.054309]
[1732065987970,0.3608,91967.0,91933.0,0.32632]
[1732065988161,0.054293,91959.0,91951.0,0.10591678]
[1732065988559,0.054293,91959.0,91952.0,0.054297]
[1732065989057,0.00013482,91958.0,91952.0,0.054297]
[1732065989253,0.00013482,91958.0,91941.0,0.3608]
[1732065989449,0.00013482,91958.0,91939.0,0.3608]
[1732065989450,0.054299,91948.0,91939.0,0.3608]
[1732065990162,0.415099,91948.0,91937.0,0.10591678]
[1732065990363,0.415099,91948.0,91939.0,0.054304]
[1732065990957,0.415099,91948.0,91940.0,0.10587678]
[1732065991269,0.054299,91948.0,91940.0,0.10587678]
[1732065991973,0.054294,91957.0,91940.0,0.10587678]
[1732065992170,0.00013482,91958.0,91954.0,0.10591678]
[1732065992378,0.00013482,91958.0,91956.0,0.054294]
[1732065994678,0.00013482,91958.0,91951.0,0.054297]
[1732065994974,0.00013482,91958.0,91952.0,0.054297]
[1732065995175,0.00013482,91958.0,91956.0,0.054294]
[1732065995874,0.00013482,91958.0,91957.0,0.32624]
[1732065996075,0.00013482,91958.0,91957.0,0.43772]
[1732065996371,0.0051,91967.0,91966.0,0.054289]
[1732065996567,0.1,92000.0,91975.0,0.054283]
[1732065996568,0.0051,91976.0,91975.0,0.054283]
[1732065996767,0.0051,91987.0,91979.0,0.054281]
[1732065996968,0.3608,91991.0,91979.0,0.054281]
[1732065997271,0.054276,91987.0,91982.0,0.054279]
[1732065997472,7.77e-05,91988.0,91985.0,0.054277]
[1732065998960,7.77e-05,91988.0,91978.0,0.12438]
[1732065999168,0.0543537,91988.0,91986.0,0.054276]
[1732065999475,7.77e-05,91988.0,91986.0,0.054276]
[1732066001372,7.77e-05,91988.0,91978.0,0.059381]
[1732066001671,7.77e-05,91988.0,91978.0,0.0051]
[1732066001672,0.05428,91981.0,91978.0,0.0051]
[1732066002170,0.054279,91983.0,91979.0,0.054281]
[1732066002374,0.054279,91983.0,91980.0,0.05428]
[1732066002571,7.77e-05,91988.0,91982.0,0.10591678]
[1732066002774,7.77e-05,91988.0,91986.0,0.054276]
[1732066003164,7.77e-05,91988.0,91987.0,0.32612]
[1732066004075,0.0051,91993.0,91987.0,0.4454]
[1732066004281,0.0051,91999.0,91998.0,0.05427]
[1732066004473,0.4608,92000.0,91998.0,0.05427]
[1732066004662,0.1,92000.0,91998.0,0.05427]
[1732066005077,8.83e-05,91999.0,91998.0,0.05427]
[1732066008672,8.83e-05,91999.0,91993.0,0.0051]
[1732066008876,0.054272,91995.0,91993.0,0.0051]
[1732066009182,0.054272,91995.0,91991.0,0.054273]
[1732066009370,0.054272,91994.0,91991.0,0.054273]
[1732066011681,0.3608883,91999.0,91988.0,0.0051]
[1732066012971,8.83e-05,91999.0,91994.0,0.054272]
[1732066013174,0.054271,91996.0,91994.0,0.054272]
[1732066013375,0.3608,91995.0,91994.0,0.054272]
[1732066013683,0.054274,91991.0,91988.0,0.0051]
[1732066015184,0.054275,91990.0,91988.0,0.0051]
[1732066015378,0.054275,91990.0,91974.0,0.16228136]
[1732066015379,0.054278,91984.0,91983.0,0.0051]
[1732066015579,0.05428,91980.0,91977.0,0.0051]
[1732066015881,0.054281,91978.0,91977.0,0.0051]
[1732066016077,0.054283,91976.0,91975.0,0.00013229]
[1732066016693,0.3608,91984.0,91975.0,0.00013229]
[1732066016987,0.054279,91983.0,91975.0,0.00013229]
[1732066017185,0.3608,91984.0,91980.0,0.05428]
[1732066017378,0.054279,91982.0,91980.0,0.05428]
[1732066018678,0.3608,91987.0,91986.0,0.054276]
[1732066020080,0.3608,91987.0,91976.0,0.07554927]
[1732066020272,0.3608,91987.0,91986.0,0.054276]
[1732066020994,0.35861765,91987.0,91986.0,0.054276]
[1732066026490,0.3608,91995.0,91994.0,0.054272]
[1732066026687,0.3608,91995.0,91994.0,0.16004786]
[1732066027289,0.3608,91995.0,91994.0,0.054272]
[1732066028286,8.83e-05,91999.0,91994.0,0.16004786]
[1732066028590,8.83e-05,91999.0,91994.0,0.05381078]
[1732066028782,0.05427,91997.0,91992.0,0.054273]
[1732066028982,0.05427,91997.0,91993.0,0.054272]
[1732066029591,0.054274,91992.0,91988.0,0.170155]
[1732066029782,0.3608,91995.0,91988.0,0.170155]
[1732066029783,0.054274,91991.0,91988.0,0.054275]
[1732066030478,0.3608,91995.0,91988.0,0.054275]
[1732066030479,0.054275,91990.0,91988.0,0.054275]
[1732066032594,0.415072,91995.0,91992.0,0.054273]
[1732066033094,0.3608,91995.0,91993.0,0.054273]
[1732066033485,0.3608,91995.0,91994.0,0.10577586]
[1732066035479,8.83e-05,91999.0,91998.0,0.05427]
[1732066038591,8.83e-05,91999.0,91998.0,0.24931369]
[1732066038903,8.83e-05,91999.0,91998.0,0.05427]
[1732066039195,8.83e-05,91999.0,91998.0,0.24931369]
[1732066039394,8.83e-05,91999.0,91998.0,0.05427]
[1732066041387,8.83e-05,91999.0,91998.0,0.31102879]
[1732066042086,8.83e-05,91999.0,91998.0,0.05427]
[1732066042587,8.83e-05,91999.0,91992.0,0.24926839]
[1732066042794,8.83e-05,91999.0,91987.0,0.61755879]
[1732066042795,0.0543583,91999.0,91998.0,0.05427]
[1732066043701,8.83e-05,91999.0,91991.0,0.30077125]
[1732066043895,8.83e-05,91999.0,91998.0,0.10577586]
[1732066044491,8.83e-05,91999.0,91998.0,0.33087125]
[1732066044790,8.83e-05,91999.0,91998.0,0.13587586]
[1732066046991,8.83e-05,91999.0,91998.0,0.189939]
[1732066048209,8.83e-05,91999.0,91998.0,0.19500285]
[1732066048595,8.83e-05,91999.0,91997.0,0.19500285]
[1732066048894,0.0543573,91999.0,91998.0,0.19500285]
[1732066049203,0.0543573,91999.0,91997.0,0.19500285]
[1732066049392,8.83e-05,91999.0,91997.0,0.19507239]
[1732066049591,0.054273,91992.0,91991.0,0.19507239]
[1732066049796,0.3608,91992.0,91989.0,0.19507239]
[1732066050096,0.054274,91990.0,91989.0,0.19507239]
[1732066050297,0.054277,91987.0,91985.0,0.3248566]
[1732066050710,0.054277,91987.0,91985.0,0.3791336]
[1732066052204,0.054277,91987.0,91986.0,0.3248566]
[1732066052707,0.054277,91987.0,91986.0,0.64605611]
[1732066053108,0.054277,91987.0,91986.0,0.3248566]
[1732066053296,0.054277,91987.0,91986.0,0.64615229]
[1732066055314,0.054277,91987.0,91985.0,0.054277]
[1732066055315,0.054277,91987.0,91985.0,0.3791336]
[1732066056703,0.03120813,91999.0,91993.0,0.054273]
[1732066056704,0.05507713,91999.0,91993.0,0.054273]
[1732066057010,0.05507713,91999.0,91994.0,0.054272]
[1732066058109,0.054295,91955.0,91923.0,0.45451058]
[1732066058318,0.21155172,91995.0,91908.0,0.51944066]
[1732066058319,0.57235172,91924.0,91908.0,0.00056]
[1732066058616,0.57235172,91924.0,91875.0,0.0636]
[1732066058617,0.054329,91898.0,91879.0,0.02171612]
[1732066058923,0.3608,91880.0,91879.0,0.02171612]
[1732066059101,0.6629415,91880.0,91879.0,0.79574235]
[1732066059306,0.66310117,91880.0,91879.0,0.79574235]
[1732066059505,0.3608,91880.0,91879.0,0.67154235]
[1732066059722,0.3608,91880.0,91879.0,0.79574235]
[1732066061410,0.66310302,91880.0,91879.0,0.79574235]
[1732066061925,0.66310302,91880.0,91879.0,0.79578235]
[1732066062626,0.66310302,91880.0,91879.0,0.46963081]
[1732066063808,0.22257078,91890.0,91879.0,0.80685963]
[1732066064010,0.26263386,91903.0,91891.0,0.054333]
[1732066064208,0.3608,91904.0,91894.0,0.054331]
[1732066064409,0.3608,91904.0,91895.0,0.12428]
[1732066064818,0.00010865,91898.0,91895.0,0.12428]
[1732066066229,0.41513,91896.0,91883.0,0.054337]
[1732066066405,0.3608,91888.0,91884.0,0.12428]
[1732066066603,0.41589,91896.0,91884.0,0.12428]
[1732066066814,0.41513,91896.0,91884.0,0.12428]
[1732066067415,0.41513,91896.0,91883.0,0.10987139]
[1732066067616,0.41513,91896.0,91884.0,0.12428]
[1732066068607,0.3608,91896.0,91883.0,0.05553439]
[1732066068918,0.3608,91896.0,91830.0,0.3608]
[1732066068919,0.51840093,91884.0,91860.0,0.12428]
[1732066069214,0.51840093,91871.0,91862.0,0.12428]
[1732066069813,0.51840093,91871.0,91862.0,0.1243715]
[1732066070007,0.3608,91871.0,91862.0,9.15e-05]
[1732066070314,0.3608,91871.0,91870.0,0.12591229]
[1732066070512,0.3608,91871.0,91870.0,0.45247229]
[1732066070709,0.25426105,91882.0,91870.0,0.45247229]
[1732066070916,0.34825425,91881.0,91870.0,0.12591229]
[1732066071224,0.25426105,91872.0,91870.0,0.18025729]
[1732066071422,0.34825425,91871.0,91870.0,0.18025729]
[1732066071812,0.34825425,91871.0,91870.0,0.50681729]
[1732066072012,0.29825425,91871.0,91870.0,0.38253729]
[1732066072321,0.25398954,91875.0,91873.0,0.054344]
[1732066072522,0.28902964,91882.0,91875.0,0.054342]
[1732066072720,0.39388395,91881.0,91877.0,0.15760093]
[1732066072908,0.3938755,91880.0,91877.0,0.15760093]
[1732066073109,0.28902964,91883.0,91877.0,0.15760093]
[1732066073314,0.25395239,91880.0,91877.0,0.15760093]
[1732066073516,0.25395239,91879.0,91878.0,0.054341]
[1732066073711,0.28541177,91879.0,91878.0,0.054341]
[1732066073916,0.28541177,91879.0,91878.0,0.380861]
[1732066074421,0.28541177,91879.0,91877.0,0.15760093]
[1732066074621,0.28541177,91878.0,91877.0,0.15760093]
[1732066075810,0.28541177,91878.0,91877.0,0.21194193]
[1732066076211,0.3608,91884.0,91877.0,0.21194193]
[1732066077124,0.63285031,91883.0,91880.0,0.15760093]
[1732066077321,0.91872172,91882.0,91881.0,0.1396]
[1732066077522,0.6328508,91882.0,91881.0,0.1396]
[1732066078015,0.27253435,91882.0,91881.0,0.1396]
[1732066078812,0.3608,91884.0,91881.0,0.29720093]
[1732066079023,0.054328,91900.0,91887.0,0.054335]
[1732066079221,0.3659,91899.0,91889.0,0.15760093]
[1732066079526,0.3659,91899.0,91881.0,0.50504]
[1732066079527,0.054337,91885.0,91881.0,0.36544]
[1732066079726,0.63263792,91882.0,91881.0,0.36544]
[1732066079906,0.8876563,91882.0,91881.0,0.50504]
[1732066080111,0.63263792,91882.0,91881.0,0.50504]
[1732066080316,0.8766737,91882.0,91881.0,0.50504]
[1732066080921,0.8766737,91882.0,91873.0,0.04400473]
[1732066081123,0.3608,91874.0,91870.0,0.00163241]
[1732066081419,0.32618192,91872.0,91870.0,0.00163241]
[1732066081625,0.054348,91866.0,91865.0,0.1396]
[1732066081825,0.054348,91866.0,91862.0,0.04276104]
[1732066081826,0.27183792,91865.0,91862.0,0.04276104]
[1732066082016,0.60483578,91866.0,91862.0,0.1396915]
[1732066082017,0.32618692,91863.0,91862.0,0.1396915]
[1732066082212,0.85349636,91863.0,91862.0,0.1396915]
[1732066082412,0.79565725,91863.0,91862.0,0.1396915]
[1732066082612,0.52381933,91863.0,91862.0,0.1396915]
[1732066083210,0.83873617,91863.0,91862.0,0.1396915]
[1732066083410,1.11057409,91863.0,91862.0,0.1396915]
[1732066083615,1.11057409,91863.0,91862.0,9.15e-05]
[1732066083924,0.054357,91850.0,91848.0,0.1396]
[1732066084223,0.3608,91849.0,91848.0,0.1396]
[1732066084526,0.87003792,91849.0,91848.0,0.1396]
[1732066084718,0.87003792,91849.0,91848.0,0.13969382]
[1732066085533,0.50923792,91849.0,91848.0,0.13969382]
[1732066085830,0.23848934,91855.0,91854.0,0.054355]
[1732066086011,0.45361574,91855.0,91854.0,0.054355]
[1732066086215,0.229941,91855.0,91854.0,0.054355]
[1732066086513,0.229941,91855.0,91852.0,0.15760093]
[1732066086718,0.48727227,91854.0,91853.0,0.054355]
[1732066087120,0.229941,91854.0,91853.0,0.054355]
[1732066087316,0.47841045,91854.0,91853.0,0.054355]
[1732066088329,0.47841045,91854.0,91853.0,0.15760093]
[1732066088521,0.43441045,91854.0,91853.0,0.83855593]
[1732066089229,0.185941,91854.0,91853.0,0.53855593]
[1732066089925,0.185941,91854.0,91853.0,0.83855593]
[1732066090125,0.185941,91854.0,91853.0,1.19935593]
[1732066090330,0.22494183,91864.0,91853.0,1.19935593]
[1732066090331,0.22494183,91865.0,91863.0,0.054349]
[1732066090519,0.22494183,91872.0,91867.0,0.054347]
[1732066090722,0.22494183,91873.0,91871.0,0.15760093]
[1732066091021,0.22494183,91875.0,91873.0,0.054344]
[1732066091219,0.29231258,91896.0,91877.0,0.054341]
[1732066091220,0.22494183,91878.0,91877.0,0.054341]
[1732066091631,0.22494183,91879.0,91877.0,0.054341]
[1732066092333,0.22494183,91880.0,91879.0,0.05434]
[1732066092539,0.0306,91895.0,91883.0,0.054338]
[1732066092723,0.59123168,91884.0,91883.0,0.054338]
[1732066093126,0.59123168,91884.0,91871.0,0.04380716]
[1732066093127,0.8630696,91884.0,91871.0,0.04380716]
[1732066093427,0.3608,91875.0,91874.0,0.02174116]
[1732066093819,0.85766059,91875.0,91874.0,0.02174116]
[1732066094022,0.85766059,91875.0,91861.0,0.3608]
[1732066094223,0.27183792,91868.0,91862.0,0.14732]
[1732066094422,0.27183792,91868.0,91844.0,0.15760093]
[1732066094423,0.23031668,91867.0,91866.0,0.054347]
[1732066094624,0.59111668,91867.0,91866.0,0.201667]
[1732066094826,0.8629546,91867.0,91866.0,0.14732]
[1732066097026,0.8629546,91867.0,91866.0,0.201668]
[1732066098340,1.12527791,91867.0,91866.0,0.201668]
[1732066098524,1.12527791,91867.0,91866.0,0.14732]
[1732066099130,0.8629546,91867.0,91866.0,0.14732]
[1732066099934,0.8629546,91867.0,91864.0,0.14732]
[1732066100233,0.27183792,91865.0,91864.0,0.14732]
[1732066100433,0.69180266,91865.0,91864.0,0.14732]
[1732066100638,0.94251979,91865.0,91864.0,0.14732]
[1732066101536,0.94251979,91865.0,91853.0,0.04311742]
[1732066101842,0.63263792,91855.0,91854.0,0.14732]
[1732066102038,1.05260266,91855.0,91854.0,0.14732]
[1732066102627,1.05260266,91855.0,91854.0,0.201675]
[1732066103028,0.46148598,91855.0,91854.0,0.201675]
[1732066103225,0.18964806,91855.0,91854.0,0.201675]
[1732066103430,0.18964806,91856.0,91854.0,0.201675]
[1732066103739,0.18964806,91855.0,91854.0,0.201675]
[1732066105439,0.36666,91867.0,91854.0,0.14732]
[1732066105642,0.18703445,91866.0,91860.0,0.054351]
[1732066105832,0.18703445,91865.0,91860.0,0.054351]
[1732066106032,0.27183792,91861.0,91860.0,0.054351]
[1732066106232,0.18703445,91861.0,91860.0,0.054351]
[1732066106835,0.3608,91867.0,91854.0,0.14732]
[1732066107146,0.27183792,91865.0,91864.0,0.054349]
[1732066107342,0.45885665,91865.0,91864.0,0.054349]
[1732066108041,0.45885665,91865.0,91863.0,0.15760093]
[1732066108042,0.3608,91867.0,91863.0,0.15760093]
[1732066108342,0.33265548,91867.0,91866.0,0.054348]
[1732066110239,0.33265548,91867.0,91866.0,0.09736242]
[1732066110748,0.33265548,91867.0,91866.0,0.20339509]
[1732066112649,0.0051,91878.0,91877.0,0.054341]
[1732066112951,0.3608,91884.0,91882.0,0.054338]
[1732066117948,0.0051,91895.0,91878.0,0.3608]
[1732066118150,0.0051,91895.0,91892.0,0.054332]
[1732066118357,0.032,91897.0,91893.0,0.14008]
[1732066118841,0.27183792,91894.0,91893.0,0.14008]
[1732066121443,0.27183792,91894.0,91893.0,0.18373129]
[1732066122947,0.27183792,91894.0,91893.0,0.04365129]
[1732066123251,0.27183792,91894.0,91893.0,0.1336]
[1732066124356,0.054341,91878.0,91876.0,0.00056]
[1732066124545,0.63263792,91877.0,91875.0,0.1336]
[1732066124752,0.27183792,91876.0,91875.0,0.1336]
[1732066127657,0.3608,91884.0,91883.0,0.054338]
[1732066127854,0.3608,91884.0,91883.0,0.16037067]
[1732066129955,0.3608,91895.0,91886.0,0.054336]
[1732066130155,0.3608,91895.0,91883.0,0.10603267]
[1732066130156,0.27183792,91886.0,91883.0,0.10603267]
[1732066130360,0.27183792,91892.0,91885.0,0.10603267]
[1732066130551,0.27183792,91892.0,91891.0,0.10603267]
[1732066130747,0.27183792,91892.0,91891.0,0.23963267]
[1732066131844,0.27183792,91892.0,91891.0,0.1336]
[1732066131845,0.32616992,91892.0,91891.0,0.1336]
[1732066132143,0.27183792,91892.0,91884.0,0.1336]
[1732066132350,0.3608,91885.0,91884.0,0.1336]
[1732066132557,0.63263792,91885.0,91884.0,0.1336]
[1732066134655,0.63263792,91885.0,91880.0,0.02174139]
[1732066134964,0.27183792,91881.0,91880.0,0.02174139]
[1732066135257,0.27183792,91881.0,91880.0,0.15534139]
[1732066145352,0.27183792,91881.0,91880.0,0.02174139]
[1732066145554,0.27183792,91881.0,91880.0,0.15534139]
[1732066146351,0.3608,91885.0,91884.0,0.054337]
[1732066146552,0.3608,91885.0,91884.0,0.16036967]
[1732066147067,0.0051,91895.0,91884.0,0.10603267]
[1732066147255,0.27183792,91892.0,91890.0,0.054333]
[1732066147459,0.27183792,91893.0,91881.0,0.0641]
[1732066147665,0.27183792,91893.0,91892.0,0.054332]
[1732066148970,0.27183792,91893.0,91892.0,0.16036467]
[1732066149660,0.032,91897.0,91896.0,0.05433]
[1732066149858,0.032,91897.0,91896.0,0.18793]
[1732066150078,0.3608,91903.0,91896.0,0.29396267]
[1732066150567,0.3608,91903.0,91902.0,0.054326]
[1732066151564,0.63263792,91903.0,91897.0,0.00013746]
[1732066151769,0.27183792,91898.0,91897.0,0.00013746]
[1732066152071,0.27183792,91898.0,91897.0,0.13373746]
[1732066154765,0.27183792,91898.0,91897.0,0.00013746]
[1732066154959,0.27183792,91898.0,91897.0,0.13341746]
[1732066156862,0.27183792,91898.0,91897.0,0.23945013]
[1732066167080,0.32616692,91898.0,91897.0,0.23945013]
[1732066167663,0.32616692,91898.0,91897.0,0.00013746]
[1732066172686,0.27183792,91898.0,91897.0,0.10617013]
[1732066173274,0.3608,91900.0,91898.0,0.054329]
[1732066173785,0.27183792,91899.0,91898.0,0.054329]
[1732066176478,0.27183792,91899.0,91897.0,0.10617013]
[1732066176479,0.3608,91906.0,91905.0,0.054325]
[1732066176676,0.3608,91906.0,91905.0,0.16035767]
[1732066176880,7.731e-05,91908.0,91907.0,0.054323]
[1732066181276,0.27191523,91908.0,91906.0,0.36136]
[1732066181477,0.27183792,91907.0,91905.0,0.10603267]
[1732066181676,7.731e-05,91908.0,91906.0,0.14056]
[1732066182084,0.27183792,91907.0,91906.0,0.14056]
[1732066186782,0.27183792,91907.0,91906.0,0.16229381]
[1732066188500,0.27183792,91907.0,91906.0,0.14056]
[1732066190184,0.63263792,91907.0,91906.0,0.14056]
[1732066190698,0.63263792,91907.0,91906.0,0.13388]
[1732066198407,0.63263792,91907.0,91906.0,0.188204]
[1732066199605,0.63263792,91907.0,91906.0,0.13388]
[1732066201204,0.63263792,91907.0,91906.0,0.188204]
[1732066201908,0.59635499,91907.0,91906.0,0.188204]
[1732066202206,0.23555499,91907.0,91906.0,0.188204]
[1732066202408,0.59635499,91907.0,91906.0,0.188204]
[1732066202707,0.59635499,91907.0,91892.0,0.0655]
[1732066202708,0.23322547,91888.0,91879.0,0.3608]
[1732066203008,0.23322547,91888.0,91868.0,0.3608]
[1732066203009,0.054335,91888.0,91880.0,0.0157476]
[1732066203191,0.054335,91888.0,91878.0,0.10603267]
[1732066203192,0.3608,91880.0,91878.0,0.16037267]
[1732066203401,0.23322547,91879.0,91878.0,0.16037267]
[1732066203695,0.23322547,91879.0,91878.0,0.1604991]
[1732066204609,0.23322547,91879.0,91878.0,0.21246369]
[1732066205508,0.23322547,91879.0,91878.0,0.33994369]
[1732066206810,0.23322547,91879.0,91878.0,0.3616874]
[1732066210407,0.3608,91890.0,91878.0,0.3073474]
[1732066210602,0.3608,91890.0,91888.0,0.054335]
[1732066210917,0.0051,91897.0,91889.0,0.56043267]
[1732066211113,0.0051,91902.0,91896.0,0.21206534]
[1732066211410,0.3667,91925.0,91907.0,0.054323]
[1732066211411,7.731e-05,91908.0,91907.0,0.054323]
[1732066211610,0.22919184,91908.0,91907.0,0.16035567]
[1732066213299,0.0051,91921.0,91907.0,0.10603267]
[1732066213499,0.0051,91927.0,91920.0,0.10603267]
[1732066213706,0.415108,91933.0,91919.0,0.3608]
[1732066213707,0.054309,91932.0,91928.0,0.10603267]
[1732066213898,0.22911453,91929.0,91928.0,0.10603267]
[1732066214300,0.22919379,91929.0,91928.0,0.10603267]
[1732066214506,0.22919379,91929.0,91922.0,0.10603267]
[1732066214704,7.926e-05,91929.0,91922.0,0.10603267]
[1732066214907,0.22911453,91923.0,91922.0,0.10603267]
[1732066217600,0.43239267,91923.0,91905.0,0.13232547]
[1732066217821,0.415121,91912.0,91903.0,0.12748]